[Event "*** Titled Tuesday Blitz"]
[Site "Chess.com"]
[Date "2020.12.29"]
[Round "2"]
[White "DavidEgglestonIM"]
[Black "Nadtkins"]
[Result "1/2-1/2"]
[WhiteElo "2705"]
[BlackElo "2542"]
[TimeControl "180+1"]
[EndTime "10:19:47 PST"]
[Termination "Game drawn - insufficient material"]

1. e4 {[%clk 0:03:00.9]} 1... e5 {[%clk 0:02:59.1]} 2. Nf3 {[%clk 0:03:00.5]}
2... Nc6 {[%clk 0:02:59.7]} 3. Bb5 {[%clk 0:03:00.3]} 3... a6 {[%clk 0:02:57.8]}
4. Ba4 {[%clk 0:02:59.6]} 4... Nf6 {[%clk 0:02:56.9]} 5. O-O {[%clk 0:02:59]}
5... b5 {[%clk 0:02:57.1]} 6. Bb3 {[%clk 0:02:58.6]} 6... Be7 {[%clk 0:02:57.7]}
7. Re1 {[%clk 0:02:58.6]} 7... O-O {[%clk 0:02:56.8]} 8. c3 {[%clk 0:02:57.9]}
8... d6 {[%clk 0:02:53.4]} 9. h3 {[%clk 0:02:56]} 9... Na5 {[%clk 0:02:53.4]}
10. Bc2 {[%clk 0:02:55.6]} 10... c5 {[%clk 0:02:53.7]} 11. d4 {[%clk 0:02:53.4]}
11... Qc7 {[%clk 0:02:54.1]} 12. Nbd2 {[%clk 0:02:53.4]} 12... Nc6 {[%clk
0:02:50.3]} 13. Nf1 {[%clk 0:02:43.8]} 13... Re8 {[%clk 0:02:48.1]} 14. Ne3
{[%clk 0:02:42.5]} 14... Bf8 {[%clk 0:02:42.2]} 15. a4 {[%clk 0:02:35.3]} 15...
Bd7 {[%clk 0:02:34.2]} 16. axb5 {[%clk 0:02:29.8]} 16... axb5 {[%clk 0:02:33.4]}
17. Rxa8 {[%clk 0:02:29.8]} 17... Rxa8 {[%clk 0:02:34.3]} 18. Nd5 {[%clk
0:02:27]} 18... Qd8 {[%clk 0:02:14.1]} 19. Nxf6+ {[%clk 0:02:09.3]} 19... Qxf6
{[%clk 0:02:04.2]} 20. dxc5 {[%clk 0:02:09.1]} 20... h6 {[%clk 0:01:54.1]} 21.
Bb3 {[%clk 0:02:02.3]} 21... Na5 {[%clk 0:01:51.2]} 22. Bd5 {[%clk 0:02:00]}
22... Rc8 {[%clk 0:01:41.9]} 23. cxd6 {[%clk 0:01:53.3]} 23... Bxd6 {[%clk
0:01:40.2]} 24. Kh2 {[%clk 0:01:37]} 24... Nc4 {[%clk 0:01:35.5]} 25. b3 {[%clk
0:01:29.8]} 25... Nb6 {[%clk 0:01:31.2]} 26. Bb7 {[%clk 0:01:14.4]} 26... Rxc3
{[%clk 0:01:15.1]} 27. Be3 {[%clk 0:01:13.4]} 27... Bc7 {[%clk 0:00:58.3]} 28.
Bxb6 {[%clk 0:01:09.1]} 28... Qxb6 {[%clk 0:00:58.2]} 29. Qxd7 {[%clk
0:01:05.2]} 29... Qxb7 {[%clk 0:00:58.1]} 30. Qe8+ {[%clk 0:01:01]} 30... Kh7
{[%clk 0:00:57.7]} 31. Qxf7 {[%clk 0:01:00.2]} 31... Qc6 {[%clk 0:00:53.8]} 32.
Nh4 {[%clk 0:00:56.5]} 32... Qf6 {[%clk 0:00:50.7]} 33. Qxf6 {[%clk 0:00:52]}
33... gxf6 {[%clk 0:00:51.6]} 34. Rd1 {[%clk 0:00:49.5]} 34... Bb6 {[%clk
0:00:41.7]} 35. Rd7+ {[%clk 0:00:46.9]} 35... Kg8 {[%clk 0:00:41.7]} 36. f3
{[%clk 0:00:34.4]} 36... Be3 {[%clk 0:00:27.3]} 37. Nf5 {[%clk 0:00:30.3]} 37...
Bf4+ {[%clk 0:00:24.5]} 38. g3 {[%clk 0:00:29]} 38... Rc2+ {[%clk 0:00:24.6]}
39. Kg1 {[%clk 0:00:28.8]} 39... Bc1 {[%clk 0:00:22.5]} 40. Rb7 {[%clk
0:00:21.5]} 40... b4 {[%clk 0:00:20.4]} 41. Rxb4 {[%clk 0:00:20.2]} 41... Bd2
{[%clk 0:00:21.3]} 42. Rb7 {[%clk 0:00:19.5]} 42... Bc3 {[%clk 0:00:21.1]} 43.
Kf1 {[%clk 0:00:18.5]} 43... h5 {[%clk 0:00:20.9]} 44. Ne7+ {[%clk 0:00:18]}
44... Kf7 {[%clk 0:00:20.3]} 45. Nd5+ {[%clk 0:00:17.9]} 45... Kg6 {[%clk
0:00:20.1]} 46. b4 {[%clk 0:00:17.6]} 46... Bd4 {[%clk 0:00:19.2]} 47. Ke1
{[%clk 0:00:15.2]} 47... Bf2+ {[%clk 0:00:16.9]} 48. Kd1 {[%clk 0:00:14.8]}
48... Rb2 {[%clk 0:00:17.8]} 49. b5 {[%clk 0:00:13.8]} 49... Bxg3 {[%clk
0:00:17]} 50. b6 {[%clk 0:00:13.6]} 50... Bf2 {[%clk 0:00:17.2]} 51. Rb8 {[%clk
0:00:13.6]} 51... Bxb6 {[%clk 0:00:16]} 52. Rxb6 {[%clk 0:00:12.9]} 52... Rh2
{[%clk 0:00:16.9]} 53. Rxf6+ {[%clk 0:00:12.1]} 53... Kg5 {[%clk 0:00:17.8]} 54.
Rf5+ {[%clk 0:00:11.4]} 54... Kh4 {[%clk 0:00:17.7]} 55. Rxe5 {[%clk 0:00:10.8]}
55... Rxh3 {[%clk 0:00:18.6]} 56. Rf5 {[%clk 0:00:08.8]} 56... Kg3 {[%clk
0:00:18.4]} 57. Nf4 {[%clk 0:00:06]} 57... Rh1+ {[%clk 0:00:18]} 58. Ke2 {[%clk
0:00:05.3]} 58... h4 {[%clk 0:00:18.3]} 59. Nh5+ {[%clk 0:00:04.9]} 59... Kh3
{[%clk 0:00:17.4]} 60. Nf4+ {[%clk 0:00:04.5]} 60... Kg3 {[%clk 0:00:17.8]} 61.
Nh5+ {[%clk 0:00:04.7]} 61... Kh3 {[%clk 0:00:18.1]} 62. e5 {[%clk 0:00:04.7]}
62... Rh2+ {[%clk 0:00:13.7]} 63. Ke3 {[%clk 0:00:04.3]} 63... Ra2 {[%clk
0:00:14.6]} 64. Nf4+ {[%clk 0:00:04.4]} 64... Kh2 {[%clk 0:00:14.2]} 65. e6
{[%clk 0:00:04.6]} 65... Ra3+ {[%clk 0:00:15.1]} 66. Ke4 {[%clk 0:00:04.3]}
66... Ra7 {[%clk 0:00:15.7]} 67. Ke5 {[%clk 0:00:03.7]} 67... Kg3 {[%clk
0:00:16.6]} 68. Rg5+ {[%clk 0:00:03.1]} 68... Kxf3 {[%clk 0:00:16.3]} 69. Nd5
{[%clk 0:00:03.5]} 69... h3 {[%clk 0:00:15.8]} 70. e7 {[%clk 0:00:03.3]} 70...
Ra8 {[%clk 0:00:16.3]} 71. Ke6 {[%clk 0:00:02.9]} 71... h2 {[%clk 0:00:15.9]}
72. Rh5 {[%clk 0:00:02.9]} 72... Kg2 {[%clk 0:00:16.3]} 73. Kf7 {[%clk
0:00:02.9]} 73... Ra7 {[%clk 0:00:16]} 74. Rh6 {[%clk 0:00:02.5]} 74... h1=Q
{[%clk 0:00:15.5]} 75. Rxh1 {[%clk 0:00:02.1]} 75... Rxe7+ {[%clk 0:00:14.5]}
76. Kxe7 {[%clk 0:00:02.1]} 76... Kxh1 {[%clk 0:00:15.4]} 1/2-1/2

[Event "*** Titled Tuesday Blitz"]
[Site "Chess.com"]
[Date "2020.12.29"]
[Round "2"]
[White "malakismayil"]
[Black "sorrm8thatscheckm8"]
[Result "0-1"]
[WhiteElo "2308"]
[BlackElo "2495"]
[TimeControl "180+1"]
[EndTime "10:19:48 PST"]
[Termination "sorrm8thatscheckm8 won by checkmate"]

1. e4 {[%clk 0:03:00.9]} 1... f6 {[%clk 0:03:00]} 2. d4 {[%clk 0:02:56.6]} 2...
g6 {[%clk 0:03:00.2]} 3. Bc4 {[%clk 0:02:54.2]} 3... Bg7 {[%clk 0:02:59.4]} 4.
c3 {[%clk 0:02:54.2]} 4... b6 {[%clk 0:02:56.9]} 5. Nf3 {[%clk 0:02:53.7]} 5...
Bb7 {[%clk 0:02:57]} 6. Qe2 {[%clk 0:02:52.1]} 6... Nh6 {[%clk 0:02:55.1]} 7.
O-O {[%clk 0:02:51.2]} 7... Nf7 {[%clk 0:02:54.3]} 8. Bd3 {[%clk 0:02:48.7]}
8... O-O {[%clk 0:02:52.6]} 9. Bf4 {[%clk 0:02:47.1]} 9... e5 {[%clk 0:02:50.4]}
10. Bg3 {[%clk 0:02:45.1]} 10... d6 {[%clk 0:02:32.3]} 11. Nbd2 {[%clk
0:02:35.9]} 11... Nd7 {[%clk 0:02:31.3]} 12. h4 {[%clk 0:02:30.5]} 12... h5
{[%clk 0:02:23.8]} 13. Nh2 {[%clk 0:02:25]} 13... Nh6 {[%clk 0:02:22.8]} 14. f4
{[%clk 0:02:21.9]} 14... Qe7 {[%clk 0:02:18.5]} 15. Rae1 {[%clk 0:02:19.1]}
15... Rae8 {[%clk 0:02:05.9]} 16. f5 {[%clk 0:02:11.9]} 16... gxf5 {[%clk
0:01:57.7]} 17. exf5 {[%clk 0:02:07.2]} 17... Qf7 {[%clk 0:01:53.6]} 18. Qf2
{[%clk 0:01:52]} 18... d5 {[%clk 0:01:48]} 19. dxe5 {[%clk 0:01:47]} 19... Nxe5
{[%clk 0:01:45.9]} 20. Bxe5 {[%clk 0:01:42.1]} 20... fxe5 {[%clk 0:01:43.8]} 21.
Qe2 {[%clk 0:01:32.7]} 21... Bf6 {[%clk 0:01:41.9]} 22. Qf2 {[%clk 0:01:26]}
22... c5 {[%clk 0:01:39.2]} 23. Bb1 {[%clk 0:01:21.6]} 23... e4 {[%clk
0:01:35.8]} 24. Qf4 {[%clk 0:01:17.3]} 24... Qg7 {[%clk 0:01:33.2]} 25. Kh1
{[%clk 0:01:13.2]} 25... Be5 {[%clk 0:01:30.2]} 26. Qg5 {[%clk 0:00:41.9]} 26...
Qxg5 {[%clk 0:01:29.6]} 27. hxg5 {[%clk 0:00:42.8]} 27... Nxf5 {[%clk
0:01:30.3]} 28. Kg1 {[%clk 0:00:34.1]} 28... Ng3 {[%clk 0:01:16.6]} 29. Rxf8+
{[%clk 0:00:30.9]} 29... Rxf8 {[%clk 0:01:13.4]} 30. Nhf1 {[%clk 0:00:31.4]}
30... Ba6 {[%clk 0:01:11.1]} 31. Ne3 {[%clk 0:00:23.3]} 31... Ne2+ {[%clk
0:00:53.1]} 32. Kh1 {[%clk 0:00:21.3]} 32... Bf4 {[%clk 0:00:46.2]} 33. Ndf1
{[%clk 0:00:18.2]} 33... Bxg5 {[%clk 0:00:41]} 34. Nxd5 {[%clk 0:00:17.1]} 34...
Rxf1+ {[%clk 0:00:36.3]} 35. Rxf1 {[%clk 0:00:16.2]} 35... Ng3+ {[%clk
0:00:37.2]} 36. Kg1 {[%clk 0:00:15.9]} 36... Nxf1 {[%clk 0:00:33.4]} 37. Bxe4
{[%clk 0:00:11.8]} 37... Ne3 {[%clk 0:00:29.2]} 38. Nc7 {[%clk 0:00:10.7]} 38...
Bc4 {[%clk 0:00:28.9]} 39. b3 {[%clk 0:00:09.9]} 39... Bf7 {[%clk 0:00:27.1]}
40. Nb5 {[%clk 0:00:10.1]} 40... a6 {[%clk 0:00:23.9]} 41. Nd6 {[%clk
0:00:10.5]} 41... Be6 {[%clk 0:00:22.3]} 42. c4 {[%clk 0:00:10.7]} 42... Bf4
{[%clk 0:00:19.8]} 43. Nb7 {[%clk 0:00:09.1]} 43... Be5 {[%clk 0:00:19.1]} 44.
Nd8 {[%clk 0:00:09.2]} 44... Bf7 {[%clk 0:00:17.8]} 45. Nc6 {[%clk 0:00:09.7]}
45... Bd4 {[%clk 0:00:17.8]} 46. Ne7+ {[%clk 0:00:09.5]} 46... Kf8 {[%clk
0:00:16.5]} 47. Nc6 {[%clk 0:00:10.4]} 47... Nd1+ {[%clk 0:00:13.9]} 48. Kh2
{[%clk 0:00:10.3]} 48... Nc3 {[%clk 0:00:14.2]} 49. Bf3 {[%clk 0:00:10.7]} 49...
Nxa2 {[%clk 0:00:14.1]} 50. Na7 {[%clk 0:00:08.7]} 50... Nc1 {[%clk 0:00:14.4]}
51. Nc8 {[%clk 0:00:09.3]} 51... Nxb3 {[%clk 0:00:14.5]} 52. Nxb6 {[%clk
0:00:10.2]} 52... a5 {[%clk 0:00:14.8]} 53. Nd7+ {[%clk 0:00:10.4]} 53... Ke7
{[%clk 0:00:13]} 54. Nb6 {[%clk 0:00:11.3]} 54... Nd2 {[%clk 0:00:12.8]} 55. Bd1
{[%clk 0:00:11.4]} 55... Nxc4 {[%clk 0:00:13]} 56. Na4 {[%clk 0:00:10.9]} 56...
Ne5 {[%clk 0:00:13.2]} 57. Bc2 {[%clk 0:00:10.7]} 57... Ng4+ {[%clk 0:00:14.1]}
58. Kg3 {[%clk 0:00:10.4]} 58... Be6 {[%clk 0:00:14.4]} 59. Kf3 {[%clk
0:00:11.3]} 59... Ne3 {[%clk 0:00:14.5]} 60. Ke4 {[%clk 0:00:12.2]} 60... Nxc2
{[%clk 0:00:14.1]} 61. Kd3 {[%clk 0:00:13.1]} 61... Nb4+ {[%clk 0:00:14.1]} 62.
Kd2 {[%clk 0:00:12.7]} 62... Bf5 {[%clk 0:00:14]} 63. Nb2 {[%clk 0:00:13.6]}
63... Be6 {[%clk 0:00:13.6]} 64. Nd3 {[%clk 0:00:12.9]} 64... Nxd3 {[%clk
0:00:13.3]} 65. Kxd3 {[%clk 0:00:13.8]} 65... a4 {[%clk 0:00:14.2]} 66. Ke4
{[%clk 0:00:13.8]} 66... a3 {[%clk 0:00:15.1]} 67. g4 {[%clk 0:00:13.4]} 67...
a2 {[%clk 0:00:16]} 68. gxh5 {[%clk 0:00:13.3]} 68... a1=Q {[%clk 0:00:16.9]}
69. h6 {[%clk 0:00:14.2]} 69... Qe1+ {[%clk 0:00:17.5]} 70. Kf4 {[%clk 0:00:14]}
70... Qe5+ {[%clk 0:00:17.7]} 71. Kf3 {[%clk 0:00:12.9]} 71... Bd5+ {[%clk
0:00:18.4]} 72. Kg4 {[%clk 0:00:11.2]} 72... Qe4+ {[%clk 0:00:17.7]} 73. Kg5
{[%clk 0:00:10.5]} 73... Bf6+ {[%clk 0:00:18.2]} 74. Kh5 {[%clk 0:00:10.8]}
74... Bf7# {[%clk 0:00:18.6]} 0-1

[Event "*** Titled Tuesday Blitz"]
[Site "Chess.com"]
[Date "2020.12.29"]
[Round "2"]
[White "imdvb6307"]
[Black "zaur-mammadov"]
[Result "1/2-1/2"]
[WhiteElo "2354"]
[BlackElo "2720"]
[TimeControl "180+1"]
[EndTime "10:19:50 PST"]
[Termination "Game drawn - insufficient material"]

1. e4 {[%clk 0:03:00.9]} 1... c6 {[%clk 0:03:00.9]} 2. d4 {[%clk 0:03:00]} 2...
d5 {[%clk 0:03:00.5]} 3. Nd2 {[%clk 0:03:00.5]} 3... dxe4 {[%clk 0:03:00.7]} 4.
Nxe4 {[%clk 0:03:01.1]} 4... Nf6 {[%clk 0:03:01.6]} 5. Ng3 {[%clk 0:02:54.3]}
5... h5 {[%clk 0:03:00.8]} 6. h4 {[%clk 0:02:48.2]} 6... e5 {[%clk 0:03:00.6]}
7. Nf3 {[%clk 0:02:25.5]} 7... exd4 {[%clk 0:02:56]} 8. Qxd4 {[%clk 0:02:22.2]}
8... Qxd4 {[%clk 0:02:47.6]} 9. Nxd4 {[%clk 0:02:21.9]} 9... Bc5 {[%clk
0:02:48.5]} 10. Nb3 {[%clk 0:02:22]} 10... Bd6 {[%clk 0:02:46.2]} 11. Be2 {[%clk
0:02:13.3]} 11... Bxg3 {[%clk 0:02:42.4]} 12. fxg3 {[%clk 0:02:13.2]} 12... O-O
{[%clk 0:02:43.3]} 13. Bf4 {[%clk 0:02:09.9]} 13... Re8 {[%clk 0:02:38.1]} 14.
Kf2 {[%clk 0:01:58.3]} 14... Ne4+ {[%clk 0:02:34.3]} 15. Kf1 {[%clk 0:01:57.5]}
15... Nd7 {[%clk 0:02:31]} 16. Bxh5 {[%clk 0:01:49.6]} 16... Ndf6 {[%clk
0:02:31.3]} 17. Bf3 {[%clk 0:01:49.7]} 17... Bg4 {[%clk 0:02:29.2]} 18. Re1
{[%clk 0:01:48.6]} 18... Rad8 {[%clk 0:02:26.6]} 19. Nc1 {[%clk 0:01:47.4]}
19... Nc5 {[%clk 0:02:00.6]} 20. Kf2 {[%clk 0:01:39.1]} 20... Nce4+ {[%clk
0:01:54]} 21. Kf1 {[%clk 0:01:38.8]} 21... Nc5 {[%clk 0:01:49.9]} 22. Kf2 {[%clk
0:01:38.2]} 22... Ne6 {[%clk 0:01:50.3]} 23. Be5 {[%clk 0:01:26.6]} 23... Bxf3
{[%clk 0:01:29.5]} 24. gxf3 {[%clk 0:01:23.8]} 24... Nd5 {[%clk 0:01:30.4]} 25.
Nd3 {[%clk 0:01:03.5]} 25... f6 {[%clk 0:01:27.1]} 26. Bc3 {[%clk 0:01:03.3]}
26... Nxc3 {[%clk 0:01:27]} 27. bxc3 {[%clk 0:01:02.8]} 27... Kf7 {[%clk
0:01:27.9]} 28. Re4 {[%clk 0:01:02.4]} 28... Nc7 {[%clk 0:01:25.5]} 29. Rxe8
{[%clk 0:00:56.7]} 29... Rxe8 {[%clk 0:01:25.6]} 30. c4 {[%clk 0:00:56.7]} 30...
b6 {[%clk 0:01:20.7]} 31. Re1 {[%clk 0:00:56.2]} 31... Rd8 {[%clk 0:01:20.4]}
32. Re4 {[%clk 0:00:55.3]} 32... c5 {[%clk 0:01:20.4]} 33. a4 {[%clk 0:00:52.4]}
33... Ne6 {[%clk 0:01:20.1]} 34. Nf4 {[%clk 0:00:43.8]} 34... Nxf4 {[%clk
0:01:04.6]} 35. Rxf4 {[%clk 0:00:38.4]} 35... Rd2+ {[%clk 0:01:03.5]} 36. Ke3
{[%clk 0:00:38.9]} 36... Rxc2 {[%clk 0:01:04.4]} 37. a5 {[%clk 0:00:38.6]} 37...
bxa5 {[%clk 0:00:46.3]} 38. Kd3 {[%clk 0:00:38.5]} 38... Rf2 {[%clk 0:00:45.1]}
39. Rf5 {[%clk 0:00:37.5]} 39... a4 {[%clk 0:00:35.8]} 40. Ke3 {[%clk
0:00:34.7]} 40... Rc2 {[%clk 0:00:20.4]} 41. Rxc5 {[%clk 0:00:34.3]} 41... a3
{[%clk 0:00:20.8]} 42. Ra5 {[%clk 0:00:33.8]} 42... a2 {[%clk 0:00:21.2]} 43.
Rxa7+ {[%clk 0:00:31.8]} 43... Kg6 {[%clk 0:00:21.6]} 44. g4 {[%clk 0:00:31.2]}
44... Rb2 {[%clk 0:00:19.5]} 45. c5 {[%clk 0:00:30.5]} 45... Rc2 {[%clk
0:00:19.6]} 46. c6 {[%clk 0:00:28.6]} 46... Rxc6 {[%clk 0:00:19.3]} 47. Rxa2
{[%clk 0:00:27.9]} 47... Rc3+ {[%clk 0:00:20.2]} 48. Kf4 {[%clk 0:00:27.2]}
48... Rc4+ {[%clk 0:00:20.6]} 49. Kg3 {[%clk 0:00:27.3]} 49... Rb4 {[%clk
0:00:21.2]} 50. Ra7 {[%clk 0:00:26.7]} 50... Rc4 {[%clk 0:00:20.9]} 51. Ra3
{[%clk 0:00:19.1]} 51... Rb4 {[%clk 0:00:20.9]} 52. Re3 {[%clk 0:00:18.9]} 52...
Rc4 {[%clk 0:00:20.9]} 53. f4 {[%clk 0:00:18.8]} 53... Rb4 {[%clk 0:00:20.9]}
54. f5+ {[%clk 0:00:16.1]} 54... Kf7 {[%clk 0:00:21.1]} 55. g5 {[%clk
0:00:15.7]} 55... fxg5 {[%clk 0:00:20.2]} 56. hxg5 {[%clk 0:00:15.8]} 56... Rc4
{[%clk 0:00:21.1]} 57. Ra3 {[%clk 0:00:15.6]} 57... Rb4 {[%clk 0:00:20.4]} 58.
Ra7+ {[%clk 0:00:15.4]} 58... Kf8 {[%clk 0:00:20.7]} 59. g6 {[%clk 0:00:15.7]}
59... Rc4 {[%clk 0:00:20.1]} 60. Rf7+ {[%clk 0:00:14.5]} 60... Kg8 {[%clk
0:00:20.1]} 61. Ra7 {[%clk 0:00:14.2]} 61... Kf8 {[%clk 0:00:20.7]} 62. Kf3
{[%clk 0:00:14.3]} 62... Rb4 {[%clk 0:00:20.5]} 63. Ke3 {[%clk 0:00:14.4]} 63...
Rc4 {[%clk 0:00:20.8]} 64. Rf7+ {[%clk 0:00:13]} 64... Kg8 {[%clk 0:00:20.5]}
65. Re7 {[%clk 0:00:13.5]} 65... Kf8 {[%clk 0:00:20.7]} 66. Re4 {[%clk
0:00:13.8]} 66... Rc5 {[%clk 0:00:20.9]} 67. Kf4 {[%clk 0:00:13.8]} 67... Rb5
{[%clk 0:00:21.3]} 68. Ra4 {[%clk 0:00:13.2]} 68... Rc5 {[%clk 0:00:21.5]} 69.
Ra8+ {[%clk 0:00:13.1]} 69... Ke7 {[%clk 0:00:21.6]} 70. Kg5 {[%clk 0:00:11.9]}
70... Rc1 {[%clk 0:00:20.6]} 71. Rg8 {[%clk 0:00:10.8]} 71... Rg1+ {[%clk
0:00:20]} 72. Kh4 {[%clk 0:00:10.8]} 72... Kf6 {[%clk 0:00:19.4]} 73. Rf8+
{[%clk 0:00:10.4]} 73... Ke5 {[%clk 0:00:19.9]} 74. Rf7 {[%clk 0:00:10.4]} 74...
Kf4 {[%clk 0:00:20]} 75. Kh3 {[%clk 0:00:10.8]} 75... Rg5 {[%clk 0:00:19.5]} 76.
Rxg7 {[%clk 0:00:08.7]} 76... Kxf5 {[%clk 0:00:19.2]} 77. Rg8 {[%clk 0:00:06.4]}
77... Rxg6 {[%clk 0:00:18.4]} 78. Rxg6 {[%clk 0:00:06.1]} 78... Kxg6 {[%clk
0:00:19.3]} 1/2-1/2

[Event "*** Titled Tuesday Blitz"]
[Site "Chess.com"]
[Date "2020.12.29"]
[Round "2"]
[White "alexgo05"]
[Black "GoltsevDmitry2000"]
[Result "1/2-1/2"]
[WhiteElo "2489"]
[BlackElo "2697"]
[TimeControl "180+1"]
[EndTime "10:20:00 PST"]
[Termination "Game drawn by stalemate"]

1. e4 {[%clk 0:03:00.9]} 1... c5 {[%clk 0:02:58.8]} 2. Nf3 {[%clk 0:03:00.8]}
2... e6 {[%clk 0:02:57.7]} 3. Nc3 {[%clk 0:02:59.9]} 3... Nc6 {[%clk 0:02:57.4]}
4. d4 {[%clk 0:02:59.7]} 4... cxd4 {[%clk 0:02:56.9]} 5. Nxd4 {[%clk 0:03:00.6]}
5... a6 {[%clk 0:02:55.4]} 6. g3 {[%clk 0:02:59.5]} 6... Qc7 {[%clk 0:02:54.5]}
7. Bg2 {[%clk 0:02:59]} 7... Bb4 {[%clk 0:02:46.9]} 8. O-O {[%clk 0:02:52.7]}
8... Nge7 {[%clk 0:02:45]} 9. Nce2 {[%clk 0:02:45.2]} 9... O-O {[%clk
0:02:44.6]} 10. b3 {[%clk 0:02:37.2]} 10... Nxd4 {[%clk 0:02:39.4]} 11. Qxd4
{[%clk 0:02:35.7]} 11... Bc5 {[%clk 0:02:34.1]} 12. Qd3 {[%clk 0:02:33.5]} 12...
b5 {[%clk 0:02:27.8]} 13. Bb2 {[%clk 0:02:32.1]} 13... f6 {[%clk 0:02:18.1]} 14.
Rfd1 {[%clk 0:02:20.9]} 14... Nc6 {[%clk 0:01:59.4]} 15. c4 {[%clk 0:02:04]}
15... Ne5 {[%clk 0:01:49.1]} 16. Qc2 {[%clk 0:01:32.7]} 16... bxc4 {[%clk
0:01:42.5]} 17. bxc4 {[%clk 0:01:31.8]} 17... Bb7 {[%clk 0:01:25.1]} 18. Rac1
{[%clk 0:01:28.3]} 18... Bc6 {[%clk 0:01:24.6]} 19. Nd4 {[%clk 0:01:26]} 19...
Rab8 {[%clk 0:01:11.7]} 20. Nxc6 {[%clk 0:01:15.1]} 20... Qxc6 {[%clk
0:01:10.6]} 21. h3 {[%clk 0:01:12.8]} 21... Rf7 {[%clk 0:01:05.6]} 22. Ba1
{[%clk 0:01:04.5]} 22... d6 {[%clk 0:00:57.7]} 23. Kh2 {[%clk 0:01:03.5]} 23...
Rfb7 {[%clk 0:00:55.4]} 24. f4 {[%clk 0:00:59.6]} 24... h5 {[%clk 0:00:14.1]}
25. fxe5 {[%clk 0:00:58.7]} 25... dxe5 {[%clk 0:00:14.4]} 26. Rb1 {[%clk
0:00:58.2]} 26... h4 {[%clk 0:00:14]} 27. g4 {[%clk 0:00:44.9]} 27... Be3 {[%clk
0:00:12.8]} 28. Rxb7 {[%clk 0:00:44.4]} 28... Rxb7 {[%clk 0:00:13.7]} 29. Bb2
{[%clk 0:00:31.9]} 29... Kh7 {[%clk 0:00:12.4]} 30. Bc1 {[%clk 0:00:31.7]} 30...
Bd4 {[%clk 0:00:10.3]} 31. Rd3 {[%clk 0:00:29.7]} 31... Qc5 {[%clk 0:00:09.7]}
32. Rb3 {[%clk 0:00:29.5]} 32... Rc7 {[%clk 0:00:09.3]} 33. Qd3 {[%clk
0:00:23.4]} 33... Qxc4 {[%clk 0:00:09.1]} 34. Qxc4 {[%clk 0:00:23.1]} 34... Rxc4
{[%clk 0:00:10]} 35. Be3 {[%clk 0:00:22.6]} 35... Rc2 {[%clk 0:00:10.4]} 36.
Bxd4 {[%clk 0:00:18.5]} 36... exd4 {[%clk 0:00:11.3]} 37. Ra3 {[%clk 0:00:19.4]}
37... Kg6 {[%clk 0:00:07.7]} 38. Rxa6 {[%clk 0:00:13.5]} 38... e5 {[%clk
0:00:06.9]} 39. Ra3 {[%clk 0:00:13]} 39... Kg5 {[%clk 0:00:06.9]} 40. Kg1 {[%clk
0:00:12.9]} 40... Kf4 {[%clk 0:00:06.9]} 41. Kf1 {[%clk 0:00:12.4]} 41... g6
{[%clk 0:00:05.9]} 42. Rf3+ {[%clk 0:00:12.2]} 42... Kg5 {[%clk 0:00:06.4]} 43.
Rf2 {[%clk 0:00:12.8]} 43... Rc1+ {[%clk 0:00:06.4]} 44. Ke2 {[%clk 0:00:13.2]}
44... Ra1 {[%clk 0:00:06.8]} 45. Kd3 {[%clk 0:00:13.1]} 45... Rc1 {[%clk
0:00:06.9]} 46. Rc2 {[%clk 0:00:10.2]} 46... Rd1+ {[%clk 0:00:07.3]} 47. Kc4
{[%clk 0:00:10.3]} 47... d3 {[%clk 0:00:07.6]} 48. Rb2 {[%clk 0:00:10.3]} 48...
Rg1 {[%clk 0:00:07.1]} 49. Kxd3 {[%clk 0:00:07.2]} 49... Kf4 {[%clk 0:00:07.5]}
50. Kc4 {[%clk 0:00:05]} 50... Kg3 {[%clk 0:00:07.9]} 51. a4 {[%clk 0:00:03.1]}
51... Ra1 {[%clk 0:00:06]} 52. Kb5 {[%clk 0:00:02.9]} 52... f5 {[%clk
0:00:04.8]} 53. gxf5 {[%clk 0:00:02.9]} 53... gxf5 {[%clk 0:00:05.7]} 54. exf5
{[%clk 0:00:03.8]} 54... Rd1 {[%clk 0:00:03.4]} 55. a5 {[%clk 0:00:03.7]} 55...
Rd8 {[%clk 0:00:03.8]} 56. Ka4 {[%clk 0:00:02.6]} 56... Rd6 {[%clk 0:00:03.1]}
57. f6 {[%clk 0:00:01.7]} 57... Rxf6 {[%clk 0:00:03]} 58. Bd5 {[%clk 0:00:02.4]}
58... e4 {[%clk 0:00:02.6]} 59. Kb5 {[%clk 0:00:02.9]} 59... Rf4 {[%clk
0:00:03.5]} 60. Bc6 {[%clk 0:00:03.1]} 60... e3 {[%clk 0:00:04.4]} 61. a6 {[%clk
0:00:03.6]} 61... Rf5+ {[%clk 0:00:04.7]} 62. Kb6 {[%clk 0:00:03]} 62... Rf2
{[%clk 0:00:05.2]} 63. Rb3 {[%clk 0:00:01.9]} 63... Kf4 {[%clk 0:00:05.3]} 64.
a7 {[%clk 0:00:02]} 64... Ra2 {[%clk 0:00:05.9]} 65. a8=Q {[%clk 0:00:01.9]}
65... Rd2 {[%clk 0:00:06.8]} 66. Kc7 {[%clk 0:00:01.9]} 66... e2 {[%clk
0:00:06.3]} 67. Qf8+ {[%clk 0:00:02.8]} 67... Ke5 {[%clk 0:00:05.6]} 68. Rb5+
{[%clk 0:00:03.2]} 68... Kd4 {[%clk 0:00:05.3]} 69. Qb4+ {[%clk 0:00:03.7]}
69... Ke3 {[%clk 0:00:05.4]} 70. Re5+ {[%clk 0:00:04.1]} 70... Kf2 {[%clk
0:00:04.9]} 71. Qxd2 {[%clk 0:00:04]} 71... Kg1 {[%clk 0:00:04.9]} 72. Qxe2
{[%clk 0:00:04.9]} 1/2-1/2